Cogmind - Beta 16.1 @@@ ROGUE MODE // 2026.03.24 @ 23:50:02 Player: Ryan Result: Destroyed by G-34 Mercenary with Small Laser Performance ------------- Evolutions (1) 500 Regions Visited (2) 400 Robots Destroyed (9) 45 Value Destroyed (260) 260 Prototype IDs (0) 0 Alien Tech Used (0) 0 Bonus (0) 0 TOTAL SCORE: 1205 Bonus ------- None Cogmind --------- Core Integrity 0/400 Matter 276/300 Energy 100/100 System Corruption 0% Temperature Cool (6) Movement Core (350) Ox6 Location -9/Materials Parts ------- > --- POWER (2) -------- (None) > --- PROPULSION (3) --- (None) > --- UTILITY (2) ------ Large Storage Unit Propulsion Shielding > --- WEAPON (2) ------- (None) > --- INVENTORY (15) --- Light Treads Light Treads Hover Unit Hover Unit Heat Sink Improved Targeting Computer Peak State ------------ > --- POWER ------------ Ion Engine Ion Engine > --- PROPULSION ------- Wheel Compact Wheel Compact Wheel > --- UTILITY ---------- Large Storage Unit Propulsion Shielding > --- WEAPON ----------- Small Laser Assault Rifle > --- INVENTORY -------- Light Treads Light Treads Hover Unit Hover Unit Heat Sink Improved Targeting Computer Assault Rifle [Rating: 9] Favorites ----------- Power Ion Engine Engine Ion Engine Propulsion Compact Wheel Treads Light Treads Wheel Compact Wheel Utility Propulsion Shielding Device Heat Sink Storage Large Storage Unit Protection Propulsion Shielding Weapon Assault Rifle Energy Gun Small Laser Ballistic Gun Assault Rifle Build | -11 -10 -9 ------- Run | Yrd Mat Mat Slots Evolved 2 | . . 2 Power 1 | . . 1 Propulsion 1 | . . 1 Utility . | . . . Weapon . | . . . Parts Attached 14 | 8 3 3 Power 2 | 1 . 1 Engine 2 | 1 . 1 Core . | . . . Reactor . | . . . Propulsion 5 | 4 . 1 Treads 2 | 2 . . Leg . | . . . Wheel 3 | 2 . 1 Hover . | . . . Flight . | . . . Utility 4 | 1 3 . Device 1 | . 1 . Storage 2 | 1 1 . Processor . | . . . Hackware . | . . . Protection 1 | . 1 . Artifact . | . . . Weapon 3 | 2 . 1 Energy Gun 1 | 1 . . Energy Cannon . | . . . Ballistic Gun 2 | 1 . 1 Ballistic Cannon . | . . . Launcher . | . . . Special Weapon . | . . . Impact Weapon . | . . . Slashing Weapon . | . . . Piercing Weapon . | . . . Special Melee Weapon . | . . . Unidentified Prototypes . | . . . Parts Lost 8 | . . 8 Power 2 | . . 2 Propulsion 3 | . . 3 Utility . | . . . Weapon 3 | . . 3 Highest Loss Streak 8 | . . 8 To Critical Strikes . | . . . Average Backups 5 | 3 6 6 Power . | . 1 . Propulsion 3 | 1 3 4 Utility 1 | . 1 1 Weapon . | . 1 . Tool/Special . | . . . Unused Backups 4 | . 1 3 Power . | . . . Propulsion 2 | . . 2 Utility 2 | . 1 1 Weapon . | . . . Tool/Special . | . . . Average Slot Usage (%) 87 | . 95 76 Engine 14 | . 14 16 Wheel 24 | . 28 20 Storage 12 | . 14 11 Protection 10 | . 9 11 Energy Gun 11 | . 14 8 Ballistic Gun 11 | . 14 8 Peak Build Rating 9 | 6 7 9 Average Rating 6 | 3 6 7 On Entrance 4 | . 6 7 Avg Prop Armor Cover (%) . | . . . Naked Turns . | . . . Heaviest Build 34 | 13 29 34 Greatest Support 42 | 40 32 42 Greatest Overweight (x) 6 | . . 6 Average Overweight (x) . | . . . Largest Inventory Capacity 15 | 8 15 15 Average Capacity 11 | 6 11 15 Most Carried 9 | 5 9 8 Average Carried 5 | 3 6 6 Final Capacity 15 | 8 15 15 Final Carried 7 | 4 7 6 Class Distribution -------------------- 100% | Mutant Dominant Class ---------------- Mutant | -10/Materials Mutant | -9/Materials Resources | -11 -10 -9 ----------- Run | Yrd Mat Mat Matter Collected 402 | 219 109 74 Remotely . | . . . Salvage Created 412 | . 113 299 Parts 19 | . 8 11 Haulers Intercepted 2 | . 1 1 Recyclers Shooed . | . . . Parts Field Recycled . | . . . Retrieved Matter . | . . . Parts Self-Destructed . | . . . Prevented . | . . . Parts Restored . | . . . Kills | -11 -10 -9 ------- Run | Yrd Mat Mat Combat Hostiles Destroyed 6 | . 1 5 Guns 6 | . 1 5 Classes Destroyed 3 | . 3 . Hauler 2 | . 1 1 Watcher 1 | . 1 . Grunt 6 | . 1 5 Best Kill Streak 2 | . 2 2 Combat Bots Only 2 | . 1 2 Max Kills in Single Turn 1 | . 1 1 Gunslinging . | . . . Exploded . | . . . Melee . | . . . Uniques/NPCs Destroyed . | . . . Combat | -11 -10 -9 -------- Run | Yrd Mat Mat Hostile Shots Fired 116 | . . 116 Missed 28 | . . 28 Hits 88 | . . 88 Projectile 88 | . . 88 Critical Strikes 2 | . . 2 Damage Taken 1085 | . . 1085 Core 406 | . . 406 Absorbed by Shields . | . . . Redirected to Shielding 46 | . . 46 Core Remaining (%) 100 | 100 100 . Volleys Fired 42 | . 6 36 Largest 2 | . 2 2 Hottest 60 | . 60 60 Shots Fired 76 | . 12 64 Gun 76 | . 12 64 Cannon . | . . . Launcher . | . . . Special . | . . . Kinetic 42 | . 6 36 Thermal 34 | . 6 28 Explosive . | . . . Electromagnetic . | . . . Robot Hit Streak 7 | . 2 7 Robot Miss Streak 3 | . 3 3 Penetration Max . | . . . Secondary Targets 2 | . . 2 Max Gunslinging Chain 1 | . . 1 Shots Hit Robots 44 | . 6 38 Core Hits 17 | . 5 12 Critical Kills . | . . . Critical Parts Destroyed . | . . . Critical Strikes . | . . . Melee Attacks . | . . . Impact . | . . . Slashing . | . . . Piercing . | . . . Sneak Attacks . | . . . Combat Hostiles . | . . . Follow-up Attacks . | . . . Damage Inflicted 559 | . 73 486 Guns 559 | . 73 486 Cannons . | . . . Explosions . | . . . Melee . | . . . Ramming . | . . . Kinetic 342 | . 50 292 Thermal 217 | . 23 194 Explosive . | . . . Electromagnetic . | . . . Impact . | . . . Slashing . | . . . Piercing . | . . . Highest Corruption . | . . . Average Corruption . | . . . Corruption Purged . | . . . Corruption Blocked . | . . . Overload Shots . | . . . Overflow Damage . | . . . Projectiles . | . . . Explosions . | . . . Melee . | . . . Knockbacks . | . . . Impact . | . . . Kinetic . | . . . Secondary . | . . . Self-Inflicted Damage . | . . . Shots . | . . . Rammed . | . . . Targets Rammed . | . . . Kicked . | . . . Crushed . | . . . Highest Temperature 260 | . 20 260 Average Temperature 111 | . 20 113 Received Heat Transfer 648 | . . 648 Siege Activations . | . . . Martial Activations . | . . . Shielding Activations . | . . . Robots Disrupted . | . . . Combat Hostiles . | . . . Robots Corrupted . | . . . Combat Hostiles . | . . . Parts Fried . | . . . Impact Corruptions . | . . . Robots Melted . | . . . Combat Hostiles . | . . . Parts Melted . | . . . Heat Transferred 500 | . 50 450 Parts Sabotaged . | . . . Parts Stolen . | . . . Parts Stripped . | . . . Power Chain Reactions . | . . . Alert | -11 -10 -9 ------- Run | Yrd Mat Mat Maximum Alert Level . | . . . Low Security (%) 100 | 100 100 100 Level 1 . | . . . Level 2 . | . . . Level 3 . | . . . Level 4 . | . . . Level 5 . | . . . High Security . | . . . Max Security . | . . . Peak Influence 47 | . 27 47 Initial 1 | . . 1 Average 6 | . 2 15 Influence Increases 181 | . 39 142 Destroy 0b10 Robot/C 120 | . 20 100 Destroy 0b10 Robot/NC 15 | . 10 5 Destroy Leader 26 | . 4 22 Successful Hack 5 | . 5 . Disable Machine 15 | . . 15 Influence Decreases 181 | . 34 147 Entered New Map 4 | . . 4 Time Decay 97 | . 34 63 Lost Part 80 | . . 80 Squads Dispatched 3 | . 2 1 Investigation . | . . . Extermination . | . . . Reinforcement 3 | . 2 1 Assault . | . . . Garrison . | . . . Intercept . | . . . Searches Triggered . | . . . Construction Impeded . | . . . Haulers Reinforced . | . . . Active Scanning Responses . | . . . Cargo Convoy Interrupts . | . . . Stealth | -11 -10 -9 --------- Run | Yrd Mat Mat Distress Signals 4 | . 1 3 Communications Jammed . | . . . Distress Signals . | . . . Times Spotted 17 | . 4 13 Peak Tracking Total 7 | . 2 7 Tactical Retreats . | . . . Traps | -11 -10 -9 ------- Run | Yrd Mat Mat Traps Triggered . | . . . Indirectly . | . . . Trap Hack Attempts . | . . . Triggered . | . . . Disarmed . | . . . Reprogrammed . | . . . Reused . | . . . Traps Extracted . | . . . Installed . | . . . Triggered . | . . . Machines | -11 -10 -9 ---------- Run | Yrd Mat Mat Machines Disabled 1 | . . 1 Max in Single Turn 1 | . . 1 Machines Repaired . | . . . Machines Dismantled . | . . . Machines Sabotaged . | . . . Overloaded Fab Kills . | . . . Hacking | -11 -10 -9 --------- Run | Yrd Mat Mat Machines Accessed 2 | . 2 . Terminals 2 | . 2 . Fabricators . | . . . Repair Stations . | . . . Recycling Units . | . . . Scanalyzers . | . . . Garrison Access . | . . . Total Hacks 3 | . 3 . Successful 3 | . 3 . Failed . | . . . Catastrophic . | . . . Database Lockouts . | . . . Manual . | . . . Terminals 3 | . 3 . Fabricators . | . . . Repair Stations . | . . . Recycling Units . | . . . Scanalyzers . | . . . Garrison Access . | . . . Terminal Hacks 3 | . 3 . Record 1 | . 1 . Investigation Status 1 | . 1 . Reinforcement Status 1 | . 1 . Fabricator Hacks . | . . . Repair Station Hacks . | . . . Recycling Unit Hacks . | . . . Scanalyzer . | . . . Garrison Access Hacks . | . . . Unauthorized Hacks . | . . . Terminals . | . . . Fabricators . | . . . Repair Stations . | . . . Recycling Units . | . . . Scanalyzers . | . . . Garrison Access . | . . . Data Cores Recovered . | . . . Used . | . . . Hacking Detections 2 | . 2 . Full Trace Events . | . . . Feedback Events . | . . . Feedback Blocked . | . . . Robot Schematics Acquired . | . . . Robots Built . | . . . Authchips . | . . . Time . | . . . Total Robot Build Rating . | . . . Part Schematics Acquired . | . . . Parts Built . | . . . Authchips . | . . . Time . | . . . Total Part Build Rating . | . . . Part Studies Acquired . | . . . Parts Repaired . | . . . Time . | . . . Parts Recycled . | . . . Recycled Matter . | . . . Retrieved Matter . | . . . Retrieved Components . | . . . Parts Scanalyzed . | . . . Part Schematics Acquired . | . . . Parts Damaged . | . . . Bothacking | -11 -10 -9 ------------ Run | Yrd Mat Mat Used RIF Installer . | . . . Robots Hacked . | . . . Non-combat . | . . . Combat . | . . . Robot Hacks Applied . | . . . Relay Couplers Released . | . . . Fabnet Peak Effective % . | . . . Robots Rewired . | . . . Allies Hacked . | . . . Hacks Repelled . | . . . Allies | -11 -10 -9 -------- Run | Yrd Mat Mat Total Allies . | . . . Largest Group . | . . . Highest-Rated Group . | . . . Highest-Rated Ally . | . . . Total Orders . | . . . Ally Attacks . | . . . Total Damage . | . . . Kills . | . . . Allies Corrupted . | . . . Allies Melted . | . . . Intel | -11 -10 -9 ------- Run | Yrd Mat Mat Active Infowar (turns) . | . . . Robot Analysis Total . | . . . Derelict Logs Recovered . | . . . Drone Launches . | . . . Drone Recoveries . | . . . Exploration | -11 -10 -9 ------------- Run | Yrd Mat Mat Turns Passed 609 | 148 267 194 Spaces Moved 399 | 95 237 67 Core 13 | 10 . 3 Treads 66 | 66 . . Legs . | . . . Wheels 320 | 19 237 64 Hover . | . . . Flight . | . . . Fastest Speed 50 | 50 100 93 Average Speed 112 | 136 100 121 Slowest Speed 350 | 160 100 350 Overloaded Moves . | . . . Propulsion Burnouts . | . . . Robots Hopped . | . . . Potential Cave-ins . | . . . Cave-ins Triggered . | . . . Exploration Rate (%) 20 | 4 46 10 Regions Visited 2 Branch Regions . Pre-discovered Areas . | . . . Known Exits Taken . | . . . Unknown Exits Taken 2 | 1 1 . Scrap Searched . | . . . Spaces Dug . | . . . Terrain Destroyed . | . . . Melee . | . . . Projectile . | . . . AOE . | . . . Terrain Rammed . | . . . Walls Destroyed . | . . . Machines Disabled . | . . . Actions | -11 -10 -9 --------- Run | Yrd Mat Mat Total 482 | 112 255 115 Wait 9 | . 2 7 Move 397 | 94 236 67 Hop . | . . . Pick Up 18 | 10 6 2 Fast Attach . | . . . Attach 10 | 6 1 3 Detach . | . . . Swap 4 | 2 2 . Drop 2 | . 2 . Fire 42 | . 6 36 Melee . | . . . Ram . | . . . Kick . | . . . Crush . | . . . Escape Stasis . | . . . Rewire . | . . . Trap . | . . . Miscellaneous . | . . . Route ------- -11/Scrapyard -10/Materials -9/Materials History --------- Turn | Location | Event 4 | -11/Scrapyard | Discovered new exit (range 15) 149 | -11/Scrapyard | Entered Materials 314 | -10/Materials | Build established: Mutant 387 | -10/Materials | Discovered new exit (range 15) 416 | -10/Materials | Entered another Materials area 416 | -9/Materials | Evolved 2 slots: Power x1, Propulsion x1 586 | -9/Materials | Core integrity fell below 50% 600 | -9/Materials | Core integrity fell below 20% 610 | -9/Materials | Destroyed by G-34 Mercenary with Small Laser Last Messages --------------- reinforcements to Terminal M007. 00559_ Assault Rifle destroyed. [Achievement: There's More Where That Came From] 00563_ Com. Wheel destroyed. 00569_ G-47 Trooper heat short circuits Lgt. Nuclear Core. 00570_ G-47 Trooper destroyed. 00570_ Switching to secondary target: G-34 Mercenary. 00570_ Ion Engine destroyed. 00573_ G-34 Mercenary destroyed. 00573_ Switching to secondary target: G-34 Mercenary. 00576_ Wheel destroyed. 00578_ Sml. Laser destroyed. 00578_ Critical hit (Burn: +37). 00581_ Purification Channel disabled. 00584_ W-16 Scout sends out distress signal. 00589_ Assault Rifle destroyed. 00593_ Com. Wheel destroyed. Map ----- +----------------------------------------------------+ | ?????????????????????????????????????????? | | ?????????????????????????????????????????? | | ?????????????????????????????????????????? | | ?????????????????????????????????????????? | | ?????????????????????????????????????????? | | ???????????????????? ????????????????? | | ?????????????????? ! ????????????????? | | ???????????????? =/! ????????????????? | | ????????????????" /%[ " "?????????????? | | ??????????? """ ![! """"""""?????????? | | ??????????? """ " " """?????????? | | ??????????Y ??????????? | | ??????????" ???????????? | | ??????????# ????????????? | | ??????????# g *#?????##?????? | | ??????????# g%%#???? ??????? | | ??????????#[]] !#??? ""??????? | | ??????????#[]] #?? ""??????? | | ????????###[] = #? ????????? | | ??????? =%! # ?????????? | | ??????? + ???????????? | | ??????? *% #????????????? | | ??????????# #????????????? | | ??????????## ######### [ ##????????????? | | ???????????#???????????# #####?????????? | | ???????????????????????# @ ]]#?????????? | | ???????????????????????# ]]#?????????? | | ???????????????????????# !!#?????????? | | ???????????????????????# !!#?????????? | | ???????????????????????# !!#?????????? | | ???????????????????????# !!#?????????? | | ???????????????????????# #####?????????? | | ???????????????######### #?????????????? | | ???????????????# + #?????????????? | | ???????????????# # #?????????????? | | ???????????????# # #?????????????? | | ???????????????# # #?????????????? | | ???????????????# # #?????????????? | | ???????????????######### #?????????????? | | ?????????????########### #?????????????? | | ?????????????# + #?????????????? | | ?????????????# """ """ # #?????????????? | | ?????????????# """ """ # #?????????????? | | ?????????????# """ """ # #####?????????? | | ?????????????# """ """ # #?????????? | | ?????????????# """ """ # #?????????? | | ?????????????# # #?????????? | | ?????????????# #########?????????? | | ?????????????###########?????????????????? | | ?????????????????????????????????????????? | +----------------------------------------------------+ Best States ------------- Heat Dissipation 35 Energy Generation 15 Energy Capacity 400 Matter Stores 300 Matter Capacity 300 Sight Range 16 Terrain Scan Density 10 Propulsion Shielding 33 Evasion (%) 50 Recoil Reduction 2 Item Schematics ----------------- None Robot Schematics ------------------ None Fabricated ------------ Nothing Repaired ---------- Nothing Studied --------- None Alien Tech Used ----------------- None Achievements -------------- DATA ERROR: Steam Global Achievement% Organ Harvest There's More Where That Came From Challenges ------------ None Game ------ Seed TachyonDisruptionCompactor Manual? 0 Play Time 00:23:57 Cumulative 3.6 hours Start 2026.03.24 @ 23:13:52 End 2026.03.24 @ 23:50:02 Sessions 1 Manual Loads 0 Difficulty Rogue Special Mode None Game No. 6 Rogue 6 Adventurer 0 Explorer 0 Win Type - Total 0 Types 0/0/0/0/0/0/0/0/0/0 Lore% 0 Gallery% 4 Achievement% 4 Wizard Run 0 Options --------- Layout 1 ASCII 0 Keyboard 1 Movement Numpad Keybinds 0 Fullscreen 1 Font 24/Smallcaps Map View 50x35 Zoom Use 0% Tactical HUD 1 Map Filters NONE Filters NONE Steam 1 RUN: edf44e60-a9b1-4602-bf6c-69cbf972d02d